Cogmind - Beta 13 X1 @@@ ROGUE MODE // 2023.10.17 @ 15:45:50 // Winter2022/Polymind Player: f3-rnm Result: Destroyed by A7-FAC(z) with Makeshift Laser Performance ------------- Evolutions (4) 2000 Regions Visited (11) 2200 Robots Destroyed (35) 175 Value Destroyed (1151) 1151 Prototype IDs (0) 0 Alien Tech Used (0) 0 Bonus (5705) 5705 TOTAL SCORE: 10431 Bonus ------- Polymind Skill 5060 Follower Combat Kills 45 Met Imprinter 300 Was Imprinted 300 Cogmind --------- Core Integrity 0/850 Matter 48/50 Energy 24/25 System Corruption 3% Temperature Cool (14) Movement Core (50) Location -6/Zion Parts ------- > --- POWER (2) -------- (None) > --- PROPULSION (3) --- (None) > --- UTILITY (4) ------ Advanced Signal Interpreter > --- WEAPON (2) ------- (None) > --- INVENTORY (1) ---- (None) Peak State ------------ > --- POWER ------------ Improved Deuterium Engine > --- PROPULSION ------- Light Treads Light Treads > --- UTILITY ---------- Improved Heat Sink Improved Heat Sink Improved Light Armor Plating > --- WEAPON ----------- Gatling Laser Flak Gun > --- INVENTORY -------- (None) [Rating: 23] Favorites ----------- Power Improved Deuterium Engine Engine Improved Deuterium Engine Power Core Light Nuclear Core Propulsion Light Treads Treads Light Treads Leg Makeshift Leg Wheel Wheel Flight Unit Flight Unit Utility Improved Heat Sink Device Improved Heat Sink Processor Advanced Signal Interpreter Hackware Makeshift Hacking Suite Protection Improved Light Armor Plating Weapon Gatling Laser Energy Gun Gatling Laser Ballistic Gun Flak Gun Special Weapon Mining Laser Build | -11 -10 -9 -9 -9 -8 -8 -7 -6 -6 -6 -6 ------- Run | Jun Mat Mat Min Exi Min Mat Fac Fac Low Low Zio Slots Evolved . | . . . . . . . . . . . . Power . | . . . . . . . . . . . . Propulsion . | . . . . . . . . . . . . Utility . | . . . . . . . . . . . . Weapon . | . . . . . . . . . . . . Parts Attached . | . . . . . . . . . . . . Power . | . . . . . . . . . . . . Engine . | . . . . . . . . . . . . Core . | . . . . . . . . . . . . Reactor . | . . . . . . . . . . . . Propulsion . | . . . . . . . . . . . . Treads . | . . . . . . . . . . . . Leg . | . . . . . . . . . . . . Wheel . | . . . . . . . . . . . . Hover . | . . . . . . . . . . . . Flight . | . . . . . . . . . . . . Utility . | . . . . . . . . . . . . Device . | . . . . . . . . . . . . Storage . | . . . . . . . . . . . . Processor . | . . . . . . . . . . . . Hackware . | . . . . . . . . . . . . Protection . | . . . . . . . . . . . . Artifact . | . . . . . . . . . . . . Weapon . | . . . . . . . . . . . . Energy Gun . | . . . . . . . . . . . . Energy Cannon . | . . . . . . . . . . . . Ballistic Gun . | . . . . . . . . . . . . Ballistic Cannon . | . . . . . . . . . . . . Launcher . | . . . . . . . . . . . . Special Weapon . | . . . . . . . . . . . . Impact Weapon . | . . . . . . . . . . . . Slashing Weapon . | . . . . . . . . . . . . Piercing Weapon . | . . . . . . . . . . . . Special Melee Weapon . | . . . . . . . . . . . . Unidentified Prototypes . | . . . . . . . . . . . . Parts Lost 26 | . 5 7 1 . . 2 1 7 . . 3 Power 5 | . 1 1 . . . . 1 1 . . 1 Propulsion 9 | . 3 2 . . . 1 . 2 . . 1 Utility 6 | . . 3 . . . . . 2 . . 1 Weapon 6 | . 1 1 1 . . 1 . 2 . . . Highest Loss Streak 7 | . 4 7 1 . . 2 1 3 . . 2 To Critical Strikes . | . . . . . . . . . . . . Average Slot Usage (%) 69 | . 78 95 67 100 100 96 96 95 12 12 29 Engine 9 | . 1 10 10 16 16 16 21 11 . . 6 Core 1 | . 16 1 . . . . . . . . . Treads 9 | . . 21 . . . . . 23 . . . Leg 3 | . 20 1 . . . . . . . . 6 Wheel 5 | . . . 20 33 33 26 . . . . . Flight 1 | . 5 . . . . 8 50 1 . . . Device 16 | . 16 24 20 33 33 26 . 22 12 12 2 Processor 1 | . . . . . . . . . . . 7 Hackware 1 | . . . . . . . . . . . 7 Protection 4 | . . 10 . . . . . 11 . . . Energy Gun 6 | . 16 12 4 . . . . 11 . . . Ballistic Gun 5 | . 4 10 . . . 4 25 11 . . . Special Weapon 2 | . . . 10 16 16 12 . . . . . Naked Turns 66 | . 13 . 1 . . 1 . 9 . . 42 Heaviest Build 23 | . 9 18 6 6 6 6 4 23 1 1 5 Greatest Support 40 | 3 20 40 20 20 20 20 8 40 3 3 20 Greatest Overweight (x) 1 | . . 1 . . . . . . . . 1 Average Overweight (x) . | . . . . . . . . . . . . Largest Inventory Capacity 1 | . 1 1 1 . . . . 1 1 1 1 Average Capacity . | . . 1 . . . . . . 1 1 . Most Carried 1 | . . . . . . . . 1 1 1 1 Average Carried . | . . . . . . . . . 1 1 . Final Capacity 1 | . 1 1 . . . . . 1 1 1 1 Final Carried 1 | . . . . . . . . 1 1 1 . Class Distribution -------------------- 53% | Sentry 21% | Zionite 15% | Tunneler 5% | Grunt 3% | Swarmer Dominant Class ---------------- Grunt | -10/Materials Sentry | -9/Materials Tunneler | -9/Mines Tunneler | -9/Exiles Tunneler | -8/Mines Tunneler | -8/Materials Swarmer | -7/Factory Sentry | -6/Factory Sentry | -6/Lower Caves Sentry | -6/Lower Caves Zionite | -6/Zion Resources | -11 -10 -9 -9 -9 -8 -8 -7 -6 -6 -6 -6 ----------- Run | Jun Mat Mat Min Exi Min Mat Fac Fac Low Low Zio Matter Collected 203 | . . 84 . . . 14 . 105 . . . Remotely . | . . . . . . . . . . . . Salvage Created 1044 | . 143 552 . . . 23 . 326 . . . Parts 78 | . 12 46 . . . 8 . 12 . . . Haulers Intercepted . | . . . . . . . . . . . . Recyclers Shooed . | . . . . . . . . . . . . Parts Field Recycled . | . . . . . . . . . . . . Retrieved Matter . | . . . . . . . . . . . . Parts Self-Destructed . | . . . . . . . . . . . . Prevented . | . . . . . . . . . . . . Kills | -11 -10 -9 -9 -9 -8 -8 -7 -6 -6 -6 -6 ------- Run | Jun Mat Mat Min Exi Min Mat Fac Fac Low Low Zio Combat Hostiles Destroyed 32 | . 7 14 . . . 3 . 8 . . . Guns 32 | . 7 14 . . . 3 . 8 . . . Classes Destroyed 8 | . 2 4 . . . . . 2 . . . Operator 1 | . . 1 . . . . . . . . . Watcher 2 | . . 2 . . . . . . . . . Swarmer 8 | . 1 3 . . . 3 . 1 . . . Grunt 15 | . 6 5 . . . . . 4 . . . Brawler 1 | . . 1 . . . . . . . . . Sentry 6 | . . 5 . . . . . 1 . . . Programmer 1 | . . . . . . . . 1 . . . Heavy 1 | . . . . . . . . 1 . . . Best Kill Streak 4 | . 4 4 . . . 3 . 2 . . . Combat Bots Only 4 | . 4 4 . . . 3 . 2 . . . Max Kills in Single Turn 1 | . 1 1 . . . 1 . 1 . . . Gunslinging . | . . . . . . . . . . . . Exploded . | . . . . . . . . . . . . Melee . | . . . . . . . . . . . . Uniques/NPCs Destroyed . | . . . . . . . . . . . . Combat | -11 -10 -9 -9 -9 -8 -8 -7 -6 -6 -6 -6 -------- Run | Jun Mat Mat Min Exi Min Mat Fac Fac Low Low Zio Damage Taken 3637 | . 556 895 119 . . 122 33 1226 . . 686 Core 1293 | . 172 191 24 . . 42 . 338 . . 526 Absorbed by Shields . | . . . . . . . . . . . . Ignored by Resistances 55 | . . 55 . . . . . . . . . Core Remaining (%) 73 | 100 31 . . . 46 92 100 . . . . Volleys Fired 171 | . 60 58 . . . 13 5 35 . . . Largest 2 | . 1 2 . . . 1 1 2 . . . Hottest 108 | . 65 79 . . . 20 20 108 . . . Shots Fired 234 | . 60 100 . . . 13 5 56 . . . Gun 234 | . 60 100 . . . 13 5 56 . . . Cannon . | . . . . . . . . . . . . Launcher . | . . . . . . . . . . . . Special . | . . . . . . . . . . . . Kinetic 106 | . 24 41 . . . 13 5 23 . . . Thermal 128 | . 36 59 . . . . . 33 . . . Explosive . | . . . . . . . . . . . . Electromagnetic . | . . . . . . . . . . . . Robot Hit Streak 14 | . 8 11 . . . 6 1 14 . . . Robot Miss Streak 7 | . 2 7 . . . 2 2 5 . . . Penetration Max . | . . . . . . . . . . . . Secondary Targets 1 | . . . . . . . . 1 . . . Max Gunslinging Chain 1 | . . . . . . . . 1 . . . Shots Hit Robots 176 | . 46 67 . . . 10 1 52 . . . Core Hits 96 | . 16 25 4 . . 5 1 45 . . . Critical Kills 1 | . . . . . . 1 . . . . . Critical Parts Destroyed . | . . . . . . . . . . . . Critical Strikes 3 | . 1 1 . . . 1 . . . . . Burn 2 | . 1 1 . . . . . . . . . Destroy 1 | . . . . . . 1 . . . . . Melee Attacks . | . . . . . . . . . . . . Impact . | . . . . . . . . . . . . Slashing . | . . . . . . . . . . . . Piercing . | . . . . . . . . . . . . Sneak Attacks . | . . . . . . . . . . . . Combat Hostiles . | . . . . . . . . . . . . Follow-up Attacks . | . . . . . . . . . . . . Damage Inflicted 2871 | . 564 1054 34 . . 82 8 1129 . . . Guns 2835 | . 564 1052 . . . 82 8 1129 . . . Cannons . | . . . . . . . . . . . . Explosions . | . . . . . . . . . . . . Melee . | . . . . . . . . . . . . Ramming 36 | . . 2 34 . . . . . . . . Kinetic 1060 | . 159 436 . . . 82 8 375 . . . Thermal 1775 | . 405 616 . . . . . 754 . . . Explosive . | . . . . . . . . . . . . Electromagnetic . | . . . . . . . . . . . . Impact . | . . . . . . . . . . . . Slashing . | . . . . . . . . . . . . Piercing . | . . . . . . . . . . . . Highest Corruption 11 | . . 10 11 11 11 . . . . . 3 Average Corruption 10 | . . 9 10 11 11 . . . . . 2 Corruption Purged . | . . . . . . . . . . . . Corruption Blocked . | . . . . . . . . . . . . Effects 29 | . . 1 20 3 2 . . . . . 3 Message Errors 6 | . . . 5 1 . . . . . . . Matter Fused 2 | . . . 1 . . . . . . . 1 Heat Flow Errors 4 | . . . 4 . . . . . . . . Energy Discharges 4 | . . . 3 . 1 . . . . . . Parts Fused 3 | . . . 1 2 . . . . . . . Data Loss (minor) 4 | . . . 3 . . . . . . . 1 Data Loss (major) 3 | . . . 2 . . . . . . . 1 Misfires 1 | . . 1 . . . . . . . . . Alerts 1 | . . . 1 . . . . . . . . Misdirections 1 | . . . . . 1 . . . . . . Overload Shots . | . . . . . . . . . . . . Overflow Damage . | . . . . . . . . . . . . Projectiles . | . . . . . . . . . . . . Explosions . | . . . . . . . . . . . . Melee . | . . . . . . . . . . . . Knockbacks . | . . . . . . . . . . . . Impact . | . . . . . . . . . . . . Kinetic . | . . . . . . . . . . . . Secondary . | . . . . . . . . . . . . Self-Inflicted Damage 14 | . . . 14 . . . . . . . . Shots . | . . . . . . . . . . . . Rammed 16 | . . 3 13 . . . . . . . . Targets Rammed 18 | . . 3 13 . . . . . . . 2 Kicked 2 | . . . . . . . . . . . 2 Crushed . | . . . . . . . . . . . . Highest Temperature 342 | . 68 152 283 . . 20 12 342 . . 5 Average Temperature 52 | . 18 22 96 . . 10 7 73 . . 5 Received Heat Transfer 1052 | . 276 261 42 . . . 18 399 . . 56 Effects 2 | . . . 1 . . . . 1 . . . Interference 2 | . . . 1 . . . . 1 . . . Siege Activations . | . . . . . . . . . . . . Robots Corrupted . | . . . . . . . . . . . . Combat Hostiles . | . . . . . . . . . . . . Parts Fried . | . . . . . . . . . . . . Impact Corruptions . | . . . . . . . . . . . . Robots Melted . | . . . . . . . . . . . . Combat Hostiles . | . . . . . . . . . . . . Parts Melted 4 | . . 1 . . . . . 3 . . . Heat Transferred 4314 | . 1073 1591 . . . . . 1650 . . . Parts Sabotaged . | . . . . . . . . . . . . Parts Stolen . | . . . . . . . . . . . . Parts Stripped . | . . . . . . . . . . . . Power Chain Reactions . | . . . . . . . . . . . . Missiles Intercepted . | . . . . . . . . . . . . Alert | -11 -10 -9 -9 -9 -8 -8 -7 -6 -6 -6 -6 ------- Run | Jun Mat Mat Min Exi Min Mat Fac Fac Low Low Zio Peak Influence 389 | . 170 389 108 . . 137 77 212 . . . Initial 93 | . . 71 93 . . . 62 32 . . . Average 87 | . 80 148 72 . . 24 62 68 . . . Maximum Alert Level 1 | . . 1 . . . . . 1 . . . Low Security (%) 88 | 100 100 76 100 . 100 100 100 85 . . . Level 1 11 | . . 23 . . . . . 14 . . . Level 2 . | . . . . . . . . . . . . Level 3 . | . . . . . . . . . . . . Level 4 . | . . . . . . . . . . . . Level 5 . | . . . . . . . . . . . . High Security . | . . . . . . . . . . . . Max Security . | . . . . . . . . . . . . Squads Dispatched 9 | . 3 1 . . . 1 1 3 . . . Investigation 4 | . 2 . . . . 1 1 . . . . Extermination 1 | . . . . . . . . 1 . . . Reinforcement 4 | . 1 1 . . . . . 2 . . . Assault . | . . . . . . . . . . . . Garrison . | . . . . . . . . . . . . Intercept . | . . . . . . . . . . . . Searches Triggered . | . . . . . . . . . . . . Construction Impeded . | . . . . . . . . . . . . Haulers Reinforced . | . . . . . . . . . . . . Active Scanning Responses . | . . . . . . . . . . . . Cargo Convoy Interrupts . | . . . . . . . . . . . . Stealth | -11 -10 -9 -9 -9 -8 -8 -7 -6 -6 -6 -6 --------- Run | Jun Mat Mat Min Exi Min Mat Fac Fac Low Low Zio Distress Signals 6 | . 1 4 . . . . . 1 . . . Communications Jammed . | . . . . . . . . . . . . Distress Signals . | . . . . . . . . . . . . Times Spotted 100 | . 22 17 4 . . 8 4 22 . . 23 Peak Tracking Total 16 | . 5 7 3 . . 6 3 6 . . 16 Tactical Retreats 7 | . . 1 2 . . . . 2 . . 2 Traps | -11 -10 -9 -9 -9 -8 -8 -7 -6 -6 -6 -6 ------- Run | Jun Mat Mat Min Exi Min Mat Fac Fac Low Low Zio Traps Triggered 2 | . 2 . . . . . . . . . . Indirectly . | . . . . . . . . . . . . Trap Hack Attempts . | . . . . . . . . . . . . Triggered . | . . . . . . . . . . . . Disarmed . | . . . . . . . . . . . . Reprogrammed . | . . . . . . . . . . . . Reused . | . . . . . . . . . . . . Traps Extracted . | . . . . . . . . . . . . Installed . | . . . . . . . . . . . . Triggered 1 | . . . . . . . . . . 1 . Machines | -11 -10 -9 -9 -9 -8 -8 -7 -6 -6 -6 -6 ---------- Run | Jun Mat Mat Min Exi Min Mat Fac Fac Low Low Zio Machines Disabled . | . . . . . . . . . . . . Max in Single Turn . | . . . . . . . . . . . . Machines Repaired . | . . . . . . . . . . . . Machines Sabotaged . | . . . . . . . . . . . . Overloaded Fab Kills . | . . . . . . . . . . . . Hacking | -11 -10 -9 -9 -9 -8 -8 -7 -6 -6 -6 -6 --------- Run | Jun Mat Mat Min Exi Min Mat Fac Fac Low Low Zio Machines Accessed 7 | . . . . 2 . 2 1 2 . . . Terminals 4 | . . . . . . 2 1 1 . . . Fabricators . | . . . . . . . . . . . . Repair Stations 1 | . . . . . . . . 1 . . . Recycling Units . | . . . . . . . . . . . . Scanalyzers . | . . . . . . . . . . . . Garrison Access . | . . . . . . . . . . . . Total Hacks 8 | . . . . 2 . 3 1 2 . . . Successful 5 | . . . . 2 . 1 . 2 . . . Failed 3 | . . . . . . 2 1 . . . . Catastrophic 3 | . . . . . . 2 1 . . . . Database Lockouts . | . . . . . . . . . . . . Manual 5 | . . . . . . 3 1 . . . 1 Terminals 5 | . . . . . . 3 1 1 . . . Fabricators . | . . . . . . . . . . . . Repair Stations 1 | . . . . . . . . 1 . . . Recycling Units . | . . . . . . . . . . . . Scanalyzers . | . . . . . . . . . . . . Garrison Access . | . . . . . . . . . . . . Terminal Hacks 4 | . . . . 2 . 1 . 1 . . . Record 2 | . . . . 2 . . . . . . . Open DSF 1 | . . . . . . . . 1 . . . Branch Access Points 1 | . . . . . . 1 . . . . . Fabricator Hacks . | . . . . . . . . . . . . Repair Station Hacks 1 | . . . . . . . . 1 . . . Scan Component 1 | . . . . . . . . 1 . . . Recycling Unit Hacks . | . . . . . . . . . . . . Scanalyzer . | . . . . . . . . . . . . Garrison Access Hacks . | . . . . . . . . . . . . Unauthorized Hacks . | . . . . . . . . . . . . Terminals . | . . . . . . . . . . . . Fabricators . | . . . . . . . . . . . . Repair Stations . | . . . . . . . . . . . . Recycling Units . | . . . . . . . . . . . . Scanalyzers . | . . . . . . . . . . . . Garrison Access . | . . . . . . . . . . . . Data Cores Recovered . | . . . . . . . . . . . . Used . | . . . . . . . . . . . . Hacking Detections 2 | . . . . . . 1 1 . . . . Full Trace Events 2 | . . . . . . 1 1 . . . . Feedback Events . | . . . . . . . . . . . . Feedback Blocked . | . . . . . . . . . . . . Robot Schematics Acquired 3 | . . . . . . . . . . . 3 Robots Built . | . . . . . . . . . . . . Authchips . | . . . . . . . . . . . . Time . | . . . . . . . . . . . . Total Robot Build Rating . | . . . . . . . . . . . . Part Schematics Acquired 15 | . . . . . . . . . . . 15 Parts Built . | . . . . . . . . . . . . Authchips . | . . . . . . . . . . . . Time . | . . . . . . . . . . . . Total Part Build Rating . | . . . . . . . . . . . . Parts Repaired . | . . . . . . . . . . . . Time . | . . . . . . . . . . . . Parts Recycled . | . . . . . . . . . . . . Recycled Matter . | . . . . . . . . . . . . Retrieved Matter . | . . . . . . . . . . . . Retrieved Components . | . . . . . . . . . . . . Parts Scanalyzed . | . . . . . . . . . . . . Part Schematics Acquired . | . . . . . . . . . . . . Parts Damaged . | . . . . . . . . . . . . Bothacking | -11 -10 -9 -9 -9 -8 -8 -7 -6 -6 -6 -6 ------------ Run | Jun Mat Mat Min Exi Min Mat Fac Fac Low Low Zio Used RIF Installer . | . . . . . . . . . . . . Robots Hacked 5 | . 2 1 . . . 1 . 1 . . . Non-combat . | . . . . . . . . . . . . Combat 5 | . 2 1 . . . 1 . 1 . . . Robot Hacks Applied 7 | . 2 1 . . . 2 . 2 . . . find_shortcuts 5 | . 2 1 . . . 1 . 1 . . . find_garrison 2 | . . . . . . 1 . 1 . . . Relay Couplers Released . | . . . . . . . . . . . . Fabnet Peak Effective % . | . . . . . . . . . . . . Robots Rewired . | . . . . . . . . . . . . Allies Hacked . | . . . . . . . . . . . . Hacks Repelled . | . . . . . . . . . . . . Allies | -11 -10 -9 -9 -9 -8 -8 -7 -6 -6 -6 -6 -------- Run | Jun Mat Mat Min Exi Min Mat Fac Fac Low Low Zio Total Allies 6 | . . . . . . . . . . . 6 Largest Group 6 | . . . . . . . . . . . 6 Highest-Rated Group 344 | . . . . . . . . . . . 344 Highest-Rated Ally 96 | . . . . . . . . . . . 96 Total Orders . | . . . . . . . . . . . . Ally Attacks 11 | . . . . . . . . . . . 11 Total Damage 505 | . . . . . . . . . . . 505 Kills 2 | . . . . . . . . . . . 2 Allies Corrupted . | . . . . . . . . . . . . Allies Melted . | . . . . . . . . . . . . Intel | -11 -10 -9 -9 -9 -8 -8 -7 -6 -6 -6 -6 ------- Run | Jun Mat Mat Min Exi Min Mat Fac Fac Low Low Zio Robot Analysis Total 5 | . 2 1 1 . . . . 1 . . . Derelict Logs Recovered 6 | . . . 1 . . . . . 2 2 1 Drone Launches . | . . . . . . . . . . . . Drone Recoveries . | . . . . . . . . . . . . Exploration | -11 -10 -9 -9 -9 -8 -8 -7 -6 -6 -6 -6 ------------- Run | Jun Mat Mat Min Exi Min Mat Fac Fac Low Low Zio Turns Passed 5086 | 11 248 835 540 222 17 246 70 1228 130 174 1365 Spaces Moved 4406 | 22 125 243 760 278 21 293 164 488 259 348 1405 Core 1714 | 22 23 9 351 . . 2 . 19 259 348 681 Treads 548 | . . 165 . . . . . 383 . . . Legs 892 | . 99 69 . . . . . . . . 724 Wheels 952 | . . . 409 278 21 244 . . . . . Hover . | . . . . . . . . . . . . Flight 300 | . 3 . . . . 47 164 86 . . . Fastest Speed 37 | 50 37 50 50 80 80 37 37 37 50 50 50 Average Speed 86 | 50 105 144 66 80 80 72 37 134 50 50 96 Slowest Speed 160 | 50 120 160 80 80 80 80 37 160 50 50 140 Overloaded Moves . | . . . . . . . . . . . . Propulsion Burnouts . | . . . . . . . . . . . . Robots Hopped 3 | . 1 . . . . 1 1 . . . . Cave-ins Triggered . | . . . . . . . . . . . . Exploration Rate (%) 37 | 3 28 31 93 59 7 21 7 11 45 57 87 Regions Visited 11 Branch Regions 6 Pre-discovered Areas . | . . . . . . . . . . . . Known Exits Taken . | . . . . . . . . . . . . Unknown Exits Taken 11 | 1 1 1 1 1 1 1 1 1 1 1 . Scrap Searched 6 | . . . 1 . . . . . 2 1 2 Spaces Dug . | . . . . . . . . . . . . Terrain Destroyed . | . . . . . . . . . . . . Melee . | . . . . . . . . . . . . Projectile . | . . . . . . . . . . . . AOE . | . . . . . . . . . . . . Terrain Rammed . | . . . . . . . . . . . . Walls Destroyed . | . . . . . . . . . . . . Machines Disabled . | . . . . . . . . . . . . Actions | -11 -10 -9 -9 -9 -8 -8 -7 -6 -6 -6 -6 --------- Run | Jun Mat Mat Min Exi Min Mat Fac Fac Low Low Zio Total 5421 | 21 185 624 797 277 20 313 167 998 258 347 1414 Wait 826 | . 2 321 24 . . . . 474 . . 5 Move 4389 | 21 122 242 759 277 20 290 161 487 258 347 1405 Hop 3 | . 1 . . . . 1 1 . . . . Pick Up 2 | . . . . . . . . 1 . . 1 Fast Attach . | . . . . . . . . . . . . Attach . | . . . . . . . . . . . . Detach . | . . . . . . . . . . . . Swap . | . . . . . . . . . . . . Drop 1 | . . . . . . . . . . . 1 Fire 171 | . 60 58 . . . 13 5 35 . . . Melee . | . . . . . . . . . . . . Ram 16 | . . 3 13 . . . . . . . . Kick 2 | . . . . . . . . . . . 2 Crush . | . . . . . . . . . . . . Escape Stasis . | . . . . . . . . . . . . Rewire 1 | . . . . . . . . 1 . . . Trap . | . . . . . . . . . . . . Miscellaneous 10 | . . . 1 . . 9 . . . . . Route ------- -11/Junkyard -10/Materials -9/Materials (discovered 2 exits: *Mat / [*Min]) -9/Mines (discovered 3 exits: *Mat x2 / *Exi) -9/Exiles -8/Mines -8/Materials (discovered 3 exits: *Fac / Sto x2) -7/Factory -6/Factory -6/Lower Caves -6/Lower Caves -6/Zion History --------- Turn | Location | Event 3 | -11/Junkyard | Discovered new exit (range 16) 12 | -11/Junkyard | Entered Materials 97 | -10/Materials | Lost 4 parts (1p2n1w) 119 | -10/Materials | Core integrity fell below 50% 226 | -10/Materials | Discovered new exit (range 14) 260 | -10/Materials | Entered another Materials area 728 | -9/Materials | Discovered new exit (range 4) 1013 | -9/Materials | Discovered new exit (range 8) 1084 | -9/Materials | System corruption reached 10% 1095 | -9/Materials | Entered Mines 1106 | -9/Mines | Learned Materials terminal intel 1109 | -9/Mines | Discovered new exit (range 8) 1114 | -9/Mines | Lost 7 parts (1p2n3u1w) 1159 | -9/Mines | Received a Rocket Launcher from a helpful Derelict 1159 | -9/Mines | Discovered new exit (range 9) 1540 | -9/Mines | Core integrity fell below 50% 1628 | -9/Mines | Deemed a non-threat by the Exiles lab entrance 1629 | -9/Mines | Discovered new exit (range 5) 1635 | -9/Mines | Entered Exiles 1635 | -9/Exiles | Found Exiles lab abandoned 1843 | -9/Exiles | Discovered new exit (range 14) 1857 | -9/Exiles | Entered Mines 1859 | -8/Mines | Discovered new exit (range 11) 1874 | -8/Mines | Entered Materials 1875 | -8/Materials | Loaded intel: 12 terminal locations 2024 | -8/Materials | Identified exit to Storage 2115 | -8/Materials | Discovered new exit (range 10) 2120 | -8/Materials | Entered Factory 2179 | -7/Factory | Discovered new exit (range 16) 2190 | -7/Factory | Entered another Factory area 3405 | -6/Factory | Lost 3 parts (1p1u1w) 3412 | -6/Factory | Discovered new exit (range 7) 3418 | -6/Factory | Entered Lower Caves 3440 | -6/Lower Caves | Lost 3 parts (2n1w) 3443 | -6/Lower Caves | Encountered a Warlord checkpoint 3529 | -6/Lower Caves | Learned Factory garrison access intel 3543 | -6/Lower Caves | Discovered new exit (range 11) 3548 | -6/Lower Caves | Entered another Lower Caves area 3620 | -6/Lower Caves | Encountered a Warlord checkpoint 3632 | -6/Lower Caves | Learned 8 Factory zone layouts 3706 | -6/Lower Caves | Discovered new exit (range 15) 3722 | -6/Lower Caves | Entered Zion 3887 | -6/Zion | Imprinted 3889 | -6/Zion | Declared Zion's savior 3913 | -6/Zion | Given A8's code to call for help 3948 | -6/Zion | Learned Factory stockpile data 4099 | -6/Zion | Enhanced Grunt warped into view, answering call for help 4099 | -6/Zion | Enhanced Grunt warped into view, answering call for help 5013 | -6/Zion | Attacked by Zionites 5029 | -6/Zion | Core integrity fell below 50% 5052 | -6/Zion | Core integrity fell below 20% 5087 | -6/Zion | Destroyed by A7-FAC(z) with Makeshift Laser Last Messages --------------- 05034_ A7-FAC(z) overheating. 05035_ 9M-G3K(z) heat damages Mak. Laser. 05035_ 9M-G3K(z) overheating. 05036_ Lgt. Deuterium Engine destroyed. 05036_ A7-FAC(z) overheating. 05038_ System corrupted: Matter fused (-7). 05038_ 9M-G3K(z) heat short circuits Mak. Power Source. 05038_ A7-FAC(z) overheating. 05039_ A7-FAC(z) heat damages Imp. Carbon-fiber Leg, Mak. Laser, Mak. Leg. 05039_ 9M-G3K(z) overheating. 05040_ 9M-G3K(z) pulls a Mak. Shrapnel Gun out of the Twisted Machinery. 05040_ 9M-G3K(z) overheating. 05053_ YA-YGX(z) pulls a Mak. Sword out of the Twisted Machinery. 05053_ NN-NE6(z) pulls a Mak. Axe out of the Twisted Machinery. 05057_ K2-MFK(z) pulls a Mak. Shrapnel Gun out of the Twisted Machinery. 05069_ System corrupted: Component data lost. 05069_ 0K-L2Z(z) pulls a Mak. Sword out of the Twisted Machinery. 05080_ 40-YB3(c) calibrates the Lab Wall. 05086_ Mak. Hacking Suite destroyed. 05087_ System corrupted: Substantial component data lost. Map ----- +----------------------------------------------------+ | ????????????????########?????????????????????????? | | ????????????????#""""""#?????????????????????????? | | ????????????????#"" "#?????????????????????????? | | ????????????????#" "#?????????????????????????? | | ?????????????????# #??????????????????????????? | | ?????????????????# #??????????????????????????? | | ???????????????###" """#??????????? ????????????? | | ???????????????#"" #????####"" ????????????? | | ???????????????#""" ##???#"#""" ?????????????? | | ??????????????##" "" # ##?##"""""#"?????????????? | | ??????????????#"" "" ###"" ""#???? ???????? | | ????????????###"" #" ""#" ??????? | | ??????????###""" ""#""" "????? | | ?????????##"#""" "" """""" ????? | | ?????????#"""" """"" "" ????? | | ??####???#""" """#"" " ????? | | ###""#####" """"" """ ###?# | | #"#""#"##"" """ """"## "##" | | """"""#"""" "" """""""""""" | | "" """""" "" " """""" """""" "" | | " "## ""#"" MMM """"" "" | | "## ""# ""z"#" "" "" | | " """"" """#""" #""""""#"" " | | " """"" """""""##" """""" | | """" "" """" """" | | """ " """" z z """ | | "" "" "" """" z """"""" | | " """" z | | " "#"" | | # """" | | # "" ## "#"#"#"##" " | | # # " """""""""""""""" "" | | # """ " "" #"###"#"""#"""""""""" | | # "$" " "" " """" ""##?###########""""#" | | # """ " """"" #""" #####????????????#####"# | | # " """"" """# #?????????????????????## | | #"""""#"#"" """"" """###??????????????????????? | | """" ""#"""%] "" """""##?????????????????????? | | """ ""#" ! """"""#?????????????????????? | | #"" """"" " ""#?????????????????????? | | #"" """ $ """?????????????????????? | | #""" ""#?????????????????????? | | ?#""" """#?????????????????????? | | ####" " ""###????????????????????? | | #"""" "" """""#???????????????????? | | """"" """" "" """"##??????????????????? | | """""" "" " """"??????????????????? | | """"""" "" " "##??????????????????? | | "" """"""" "" " """ """"#?????????????????? | | #" "" "" " """""""####?????????????????? | +----------------------------------------------------+ Best States ------------- Heat Dissipation 43 Energy Generation 21 Energy Capacity 240 Matter Stores 100 Matter Capacity 100 Sight Range 16 Terrain Scan Range 16 Terrain Scan Density 10 Armor Coverage 150 Resistance: EX 50 Resistance: I 25 Evasion (%) 62 Recoil Reduction 2 Offensive Hacking 11 Item Schematics ----------------- Recoil Nullifier | -6/Zion | Archive Hpw. Shock Rifle | -6/Zion | Archive Dispersion Rifle | -6/Zion | Archive Hyp. Mass Driver | -6/Zion | Archive Coil Gun | -6/Zion | Archive Mni. Drone Bay | -6/Zion | Archive Power Sword | -6/Zion | Archive Arm. Medium Treads | -6/Zion | Archive Lrn. Missile Launcher | -6/Zion | Archive Disruptor Cannon | -6/Zion | Archive Imp. Trap Scanner | -6/Zion | Archive Arm. Leg | -6/Zion | Archive Field Propulsion Drive | -6/Zion | Archive Lrn. Proton Cannon | -6/Zion | Archive Hvy. Machine Gun | -6/Zion | Archive Robot Schematics ------------------ S-27 Virus | -6/Zion | Archive G-50 Soldier | -6/Zion | Archive T-07 Excavator | -6/Zion | Archive Fabricated ------------ Nothing Alien Tech Used ----------------- None Achievements -------------- None Challenges ------------ None Polymind | -11 -10 -9 -9 -9 -8 -8 -7 -6 -6 -6 -6 ---------- Run | Jun Mat Mat Min Exi Min Mat Fac Fac Low Low Zio Hosts 7 | . 2 1 1 . . 1 . 1 . . 1 Combat Hostiles 5 | . 2 1 . . . 1 . 1 . . . Allies 1 | . . . . . . . . . . . 1 Unique Host Classes 5 | . 2 1 1 . . . . . . . 1 Average Host Suspicion 52 | . 100 86 87 . 5 53 64 83 . . . Unsuspicious Activity 732 | . . 282 7 . . 45 . 377 . . 21 Returns to Shadow 1 | . . . . . . . . 1 . . . Fuzzy Dispatches . | . . . . . . . . . . . . Protomatter Created 309 | . 48 63 . . . 7 . 50 . . 141 Used 124 | . 36 23 5 . . 6 . 51 . . 3 Decayed 58 | . 10 . . . . . . . . . 48 Highest Spend 51 | . 30 23 5 . . 6 . 51 . . 3 Top 5 Hosts by Kills: Y-45 Defender (-9/Materials: 14) Y-54 Guardian (-6/Factory: 8) G-47 Trooper (-10/Materials: 6) S-10 Pest (-8/Materials: 3) S-10 Pest (-10/Materials: 1) Game ------ Seed HybridLightMallet Manual? 0 Play Time 00:27:12 Cumulative 104.6 hours Start 2023.10.17 @ 15:21:11 End 2023.10.17 @ 15:45:50 Sessions 1 Manual Loads 0 Difficulty Rogue Special Mode Winter2022/Polymind Game No. 112 Rogue 76 Adventurer 36 Explorer 0 Win Type - Total 7 Types 2/0/5/0/0/0/0/0/0 Lore% 52 Gallery% 72 Achievement% 61 Wizard Run 0 Options --------- ASCII 0 Keyboard 0 Movement Mouse Keybinds 0 Fullscreen 1 Font 18/SmallcapsGlow Map View 76x50 Tactical HUD 1 Map Filters NONE Filters NONE Steam 1 RUN: 8b8ddca8-f144-46a0-b16a-f81b3211cd02